[Event "Live Chess"]
[Site "Chess.com"]
[Date "2023.05.21"]
[Round "-"]
[White "JoeRoot66"]
[Black "JoshMcK"]
[Result "0-1"]
[WhiteElo "1906"]
[BlackElo "1532"]
[TimeControl "300"]
[EndTime "4:26:06 PDT"]
[Termination "JoshMcK won by checkmate"]

1. e4 {[%clk 0:04:59.2]} 1... c6 {[%clk 0:04:58.4]} 2. Nf3 {[%clk 0:04:58.2]}
2... d5 {[%clk 0:04:58.3]} 3. Nc3 {[%clk 0:04:57.7]} 3... Bg4 {[%clk 0:04:55.3]}
4. Be2 {[%clk 0:04:56.1]} 4... Bxf3 {[%clk 0:04:49]} 5. Bxf3 {[%clk 0:04:56]}
5... e6 {[%clk 0:04:47.5]} 6. exd5 {[%clk 0:04:54.9]} 6... cxd5 {[%clk
0:04:46.7]} 7. d4 {[%clk 0:04:54.8]} 7... Nc6 {[%clk 0:04:45]} 8. O-O {[%clk
0:04:53.8]} 8... Nge7 {[%clk 0:04:43.4]} 9. Re1 {[%clk 0:04:53]} 9... Nf5 {[%clk
0:04:42.2]} 10. Bxd5 {[%clk 0:04:39.8]} 10... Ncxd4 {[%clk 0:04:26.8]} 11. Bxb7
{[%clk 0:04:34.5]} 11... Rb8 {[%clk 0:04:25.3]} 12. Be4 {[%clk 0:04:28.8]} 12...
Bb4 {[%clk 0:04:23.1]} 13. Be3 {[%clk 0:04:27.1]} 13... O-O {[%clk 0:04:19.9]}
14. a3 {[%clk 0:04:19.6]} 14... Bxc3 {[%clk 0:04:17]} 15. bxc3 {[%clk
0:04:19.5]} 15... Nxe3 {[%clk 0:04:14.2]} 16. Qxd4 {[%clk 0:04:15.2]} 16... Nd5
{[%clk 0:04:00.3]} 17. Rad1 {[%clk 0:04:09.7]} 17... Qc7 {[%clk 0:03:51.7]} 18.
Bxd5 {[%clk 0:04:07.7]} 18... exd5 {[%clk 0:03:49.5]} 19. Re3 {[%clk 0:04:06.8]}
19... Rbd8 {[%clk 0:03:45.6]} 20. Rg3 {[%clk 0:04:03.6]} 20... g6 {[%clk
0:03:43.2]} 21. Rdd3 {[%clk 0:04:00.2]} 21... Rfe8 {[%clk 0:03:38.4]} 22. Rh3
{[%clk 0:03:57]} 22... Re1# {[%clk 0:03:34.7]} 0-1

[Event "Live Chess"]
[Site "Chess.com"]
[Date "2023.05.21"]
[Round "-"]
[White "Greenbecker"]
[Black "Sir_Sigmund"]
[Result "1-0"]
[WhiteElo "1689"]
[BlackElo "1917"]
[TimeControl "300"]
[EndTime "4:26:16 PDT"]
[Termination "Greenbecker won by resignation"]

1. e4 {[%clk 0:04:58.4]} 1... e5 {[%clk 0:04:57.4]} 2. Nf3 {[%clk 0:04:57.5]}
2... Nf6 {[%clk 0:04:56.3]} 3. Nc3 {[%clk 0:04:55.4]} 3... Bc5 {[%clk
0:04:50.7]} 4. d3 {[%clk 0:04:53.5]} 4... d6 {[%clk 0:04:43.3]} 5. Be3 {[%clk
0:04:52.2]} 5... Bxe3 {[%clk 0:04:41.4]} 6. fxe3 {[%clk 0:04:51.3]} 6... h6
{[%clk 0:04:38.4]} 7. Be2 {[%clk 0:04:49.8]} 7... Be6 {[%clk 0:04:33.4]} 8. O-O
{[%clk 0:04:48.6]} 8... Nbd7 {[%clk 0:04:32.3]} 9. d4 {[%clk 0:04:47]} 9... a6
{[%clk 0:04:20.8]} 10. d5 {[%clk 0:04:45.6]} 10... Bg4 {[%clk 0:04:18.6]} 11. h3
{[%clk 0:04:42.7]} 11... Bxf3 {[%clk 0:04:17.4]} 12. Bxf3 {[%clk 0:04:40.5]}
12... Qe7 {[%clk 0:04:10]} 13. Qe2 {[%clk 0:04:37.9]} 13... g5 {[%clk
0:04:06.7]} 14. Qc4 {[%clk 0:04:33.2]} 14... Nb6 {[%clk 0:03:56.7]} 15. Qb3
{[%clk 0:04:30.1]} 15... Nfd7 {[%clk 0:03:49.2]} 16. Na4 {[%clk 0:04:28]} 16...
O-O {[%clk 0:03:40.1]} 17. Nxb6 {[%clk 0:04:26.3]} 17... Nxb6 {[%clk 0:03:39.8]}
18. a4 {[%clk 0:04:24.2]} 18... a5 {[%clk 0:03:33.4]} 19. Rf2 {[%clk 0:04:12.8]}
19... f6 {[%clk 0:03:26.6]} 20. Bg4 {[%clk 0:04:08.3]} 20... Kg7 {[%clk
0:03:25.6]} 21. Raf1 {[%clk 0:04:02.4]} 21... Qe8 {[%clk 0:03:20.1]} 22. Be6
{[%clk 0:03:49.9]} 22... Qxa4 {[%clk 0:03:16.7]} 23. Qd3 {[%clk 0:03:42]} 23...
Qc4 {[%clk 0:03:11.9]} 24. Qd1 {[%clk 0:03:38.8]} 24... Qxe4 {[%clk 0:03:05.3]}
25. Qh5 {[%clk 0:03:34.7]} 25... Qg6 {[%clk 0:02:58.4]} 26. Qe2 {[%clk
0:03:26.4]} 26... Qe8 {[%clk 0:02:51.1]} 27. Bg4 {[%clk 0:03:15.9]} 27... Na4
{[%clk 0:02:33.8]} 28. Bh5 {[%clk 0:03:10.2]} 28... Qd7 {[%clk 0:02:17.3]} 29.
Qd3 {[%clk 0:03:07.4]} 29... f5 {[%clk 0:01:59.9]} 30. Rxf5 {[%clk 0:02:54.9]}
30... Rxf5 {[%clk 0:01:58]} 31. Rxf5 {[%clk 0:02:53.9]} 31... Nc5 {[%clk
0:01:56.9]} 32. Qf1 {[%clk 0:02:48]} 32... Kh8 {[%clk 0:00:48.2]} 33. Rf7 {[%clk
0:02:26]} 33... Qc8 {[%clk 0:00:46.5]} 34. Qf6+ {[%clk 0:02:22]} 1-0

[Event "Live Chess"]
[Site "Chess.com"]
[Date "2023.05.21"]
[Round "-"]
[White "gmnorfolk"]
[Black "booktrunk"]
[Result "1-0"]
[WhiteElo "2108"]
[BlackElo "1282"]
[TimeControl "300"]
[EndTime "4:26:21 PDT"]
[Termination "gmnorfolk won by checkmate"]

1. d4 {[%clk 0:04:59.2]} 1... d5 {[%clk 0:04:58.4]} 2. c4 {[%clk 0:04:55.7]}
2... dxc4 {[%clk 0:04:57]} 3. e4 {[%clk 0:04:54.3]} 3... e6 {[%clk 0:04:56]} 4.
Bxc4 {[%clk 0:04:52.3]} 4... Bb4+ {[%clk 0:04:54.7]} 5. Nc3 {[%clk 0:04:50.2]}
5... Nc6 {[%clk 0:04:47.6]} 6. Nf3 {[%clk 0:04:43.7]} 6... Nf6 {[%clk
0:04:46.3]} 7. e5 {[%clk 0:04:41.5]} 7... Ne4 {[%clk 0:04:32.5]} 8. Qc2 {[%clk
0:04:36.8]} 8... Nxc3 {[%clk 0:04:11.3]} 9. bxc3 {[%clk 0:04:35.2]} 9... Ba5
{[%clk 0:04:09.8]} 10. O-O {[%clk 0:04:30.1]} 10... Bd7 {[%clk 0:04:08]} 11. Ng5
{[%clk 0:04:27.4]} 11... g6 {[%clk 0:04:01]} 12. Ne4 {[%clk 0:04:26.1]} 12... h6
{[%clk 0:03:59.2]} 13. Nf6+ {[%clk 0:04:23.7]} 13... Kf8 {[%clk 0:03:58.4]} 14.
Bd3 {[%clk 0:04:17.8]} 14... Bb6 {[%clk 0:03:52.1]} 15. Bxg6 {[%clk 0:04:14.5]}
15... fxg6 {[%clk 0:03:31.7]} 16. Qxg6 {[%clk 0:04:12.5]} 16... h5 {[%clk
0:03:26.1]} 17. Bh6+ {[%clk 0:04:09.9]} 17... Rxh6 {[%clk 0:03:24.4]} 18. Qxh6+
{[%clk 0:04:08.6]} 18... Kf7 {[%clk 0:03:23.3]} 19. Qh7+ {[%clk 0:04:07.2]}
19... Kf8 {[%clk 0:03:21.7]} 20. Qg8+ {[%clk 0:04:06.4]} 20... Ke7 {[%clk
0:03:17.5]} 21. Qg7# {[%clk 0:04:05.8]} 1-0

[Event "Live Chess"]
[Site "Chess.com"]
[Date "2023.05.21"]
[Round "-"]
[White "friarnator"]
[Black "jumush"]
[Result "1-0"]
[WhiteElo "2007"]
[BlackElo "1781"]
[TimeControl "300"]
[EndTime "4:26:24 PDT"]
[Termination "friarnator won by resignation"]

1. d4 {[%clk 0:04:58]} 1... d5 {[%clk 0:04:57.5]} 2. Nc3 {[%clk 0:04:57.3]} 2...
Nf6 {[%clk 0:04:53.8]} 3. Bf4 {[%clk 0:04:56.5]} 3... c6 {[%clk 0:04:51]} 4. e3
{[%clk 0:04:55]} 4... Bf5 {[%clk 0:04:49.2]} 5. Nf3 {[%clk 0:04:54]} 5... e6
{[%clk 0:04:47.7]} 6. Ne5 {[%clk 0:04:53.3]} 6... Bd6 {[%clk 0:04:45.8]} 7. g4
{[%clk 0:04:52.5]} 7... Be4 {[%clk 0:04:41.3]} 8. f3 {[%clk 0:04:51.4]} 8... Bg6
{[%clk 0:04:39.8]} 9. h4 {[%clk 0:04:50.7]} 9... h5 {[%clk 0:04:22.7]} 10. g5
{[%clk 0:04:47.6]} 10... Bxe5 {[%clk 0:04:19.1]} 11. Bxe5 {[%clk 0:04:42]} 11...
Nfd7 {[%clk 0:04:16]} 12. Bxg7 {[%clk 0:04:41.1]} 12... Rg8 {[%clk 0:04:14.1]}
13. Be5 {[%clk 0:04:40.8]} 13... c5 {[%clk 0:04:12.6]} 14. Nb5 {[%clk
0:04:34.7]} 14... Nxe5 {[%clk 0:04:09.2]} 15. dxe5 {[%clk 0:04:31.3]} 15... Qd7
{[%clk 0:04:06.8]} 16. Nd6+ {[%clk 0:04:29.1]} 16... Kf8 {[%clk 0:04:05.2]} 17.
Bd3 {[%clk 0:04:12.1]} 17... Nc6 {[%clk 0:04:02.4]} 18. Bxg6 {[%clk 0:04:10.2]}
18... Rxg6 {[%clk 0:04:00.4]} 19. f4 {[%clk 0:04:07]} 19... Ke7 {[%clk
0:03:53.3]} 20. Qxh5 {[%clk 0:04:03.8]} 20... Rag8 {[%clk 0:03:51]} 21. Qe2
{[%clk 0:03:58.1]} 21... a6 {[%clk 0:03:48.4]} 22. h5 {[%clk 0:03:57.2]} 22...
R6g7 {[%clk 0:03:44.8]} 23. h6 {[%clk 0:03:51.3]} 23... Rg6 {[%clk 0:03:42.9]}
24. O-O-O {[%clk 0:03:48.8]} 24... Rh8 {[%clk 0:03:39.3]} 25. c3 {[%clk
0:03:43.6]} 25... Rh7 {[%clk 0:03:37.3]} 26. Qg4 {[%clk 0:03:36.3]} 26... Kd8
{[%clk 0:03:35.3]} 27. f5 {[%clk 0:03:34]} 27... exf5 {[%clk 0:03:33.3]} 28.
Nxf5 {[%clk 0:03:30.2]} 28... Nxe5 {[%clk 0:03:31]} 29. Qf4 {[%clk 0:03:29.5]}
29... Qe6 {[%clk 0:03:25.5]} 30. e4 {[%clk 0:03:14.6]} 30... Kc7 {[%clk
0:03:11.7]} 31. Rxd5 {[%clk 0:03:11.8]} 31... Kb8 {[%clk 0:03:08.5]} 32. Rxe5
{[%clk 0:03:09.7]} 1-0

[Event "Live Chess"]
[Site "Chess.com"]
[Date "2023.05.21"]
[Round "-"]
[White "Conradical12"]
[Black "chrisbradgate"]
[Result "1-0"]
[WhiteElo "1568"]
[BlackElo "870"]
[TimeControl "300"]
[EndTime "4:26:27 PDT"]
[Termination "Conradical12 won by checkmate"]

1. e4 {[%clk 0:04:58.5]} 1... e5 {[%clk 0:04:58]} 2. Nf3 {[%clk 0:04:58]} 2...
Nc6 {[%clk 0:04:55.2]} 3. Bc4 {[%clk 0:04:57.5]} 3... h6 {[%clk 0:04:53.2]} 4.
O-O {[%clk 0:04:54.8]} 4... Bc5 {[%clk 0:04:48.7]} 5. d4 {[%clk 0:04:46.8]} 5...
exd4 {[%clk 0:04:46.5]} 6. Bf4 {[%clk 0:04:39.1]} 6... d6 {[%clk 0:04:39.8]} 7.
c3 {[%clk 0:04:37]} 7... dxc3 {[%clk 0:04:30.4]} 8. Nxc3 {[%clk 0:04:35.4]} 8...
Bg4 {[%clk 0:04:29.3]} 9. h3 {[%clk 0:04:20.9]} 9... Bxf3 {[%clk 0:04:24.5]} 10.
Qxf3 {[%clk 0:04:19.1]} 10... Qe7 {[%clk 0:04:02.5]} 11. Nd5 {[%clk 0:04:14.9]}
11... Qd7 {[%clk 0:03:52.7]} 12. Rad1 {[%clk 0:04:08.9]} 12... O-O-O {[%clk
0:03:51.6]} 13. e5 {[%clk 0:04:07.3]} 13... Nge7 {[%clk 0:03:40.2]} 14. b4
{[%clk 0:03:50.9]} 14... Nxd5 {[%clk 0:03:37.6]} 15. bxc5 {[%clk 0:03:49.4]}
15... g5 {[%clk 0:03:29.5]} 16. Bxd5 {[%clk 0:03:42]} 16... gxf4 {[%clk
0:03:26.2]} 17. Qxf4 {[%clk 0:03:40.7]} 17... dxe5 {[%clk 0:03:19.8]} 18. Qc4
{[%clk 0:03:32.2]} 18... Qf5 {[%clk 0:03:04.8]} 19. Bxc6 {[%clk 0:03:19.7]}
19... bxc6 {[%clk 0:02:49.7]} 20. Qa6+ {[%clk 0:03:17.3]} 20... Kb8 {[%clk
0:02:43.5]} 21. Rb1+ {[%clk 0:03:16.8]} 21... Ka8 {[%clk 0:02:20.7]} 22. Qb7#
{[%clk 0:03:15.5]} 1-0

[Event "Live Chess"]
[Site "Chess.com"]
[Date "2023.05.21"]
[Round "-"]
[White "LL220284LL"]
[Black "f4nomore"]
[Result "1-0"]
[WhiteElo "2327"]
[BlackElo "1386"]
[TimeControl "300"]
[EndTime "4:26:30 PDT"]
[Termination "LL220284LL won by resignation"]

1. g3 {[%clk 0:04:58.2]} 1... d6 {[%clk 0:04:59.3]} 2. Bg2 {[%clk 0:04:58.1]}
2... Nc6 {[%clk 0:04:57]} 3. b3 {[%clk 0:04:56.8]} 3... Bd7 {[%clk 0:04:55.2]}
4. Bb2 {[%clk 0:04:55.1]} 4... Nf6 {[%clk 0:04:53.9]} 5. c4 {[%clk 0:04:53.7]}
5... e5 {[%clk 0:04:52.1]} 6. Nc3 {[%clk 0:04:52.4]} 6... Be7 {[%clk 0:04:51]}
7. Nf3 {[%clk 0:04:51.4]} 7... O-O {[%clk 0:04:49.6]} 8. O-O {[%clk 0:04:50.3]}
8... e4 {[%clk 0:04:48.2]} 9. Ne1 {[%clk 0:04:48.8]} 9... Ng4 {[%clk 0:04:40.3]}
10. Nxe4 {[%clk 0:04:45.7]} 10... Nce5 {[%clk 0:04:33.7]} 11. d4 {[%clk
0:04:44.3]} 11... Ng6 {[%clk 0:04:30.1]} 12. h3 {[%clk 0:04:43.5]} 12... Nf6
{[%clk 0:04:28.7]} 13. Nc3 {[%clk 0:04:40.4]} 13... Qc8 {[%clk 0:04:23.2]} 14.
Kh2 {[%clk 0:04:39.1]} 14... Nh5 {[%clk 0:04:03.2]} 15. e4 {[%clk 0:04:37.3]}
15... Bf6 {[%clk 0:03:54.4]} 16. Qxh5 {[%clk 0:04:27]} 16... Bxd4 {[%clk
0:03:47.7]} 17. Rd1 {[%clk 0:04:25.2]} 17... Bc5 {[%clk 0:03:41.2]} 18. Nd5
{[%clk 0:04:21.7]} 18... Qe8 {[%clk 0:03:33.5]} 19. Nf3 {[%clk 0:04:15.2]} 19...
Rc8 {[%clk 0:03:30.5]} 20. Ng5 {[%clk 0:04:07.3]} 20... h6 {[%clk 0:03:27]} 21.
Qxh6 {[%clk 0:04:01]} 21... gxh6 {[%clk 0:03:23.2]} 22. Nf6+ {[%clk 0:03:59.5]}
22... Kg7 {[%clk 0:03:15.8]} 23. Nxe8+ {[%clk 0:03:58.6]} 23... Kg8 {[%clk
0:03:14.6]} 24. Nf6+ {[%clk 0:03:57.5]} 24... Kg7 {[%clk 0:03:13.5]} 25. Nxd7+
{[%clk 0:03:56.1]} 25... Kg8 {[%clk 0:03:11.7]} 26. Nf6+ {[%clk 0:03:48.4]}
26... Kg7 {[%clk 0:03:08]} 27. Nf3 {[%clk 0:03:46.8]} 27... Ne5 {[%clk
0:03:03.2]} 28. Nxe5 {[%clk 0:03:44.8]} 28... dxe5 {[%clk 0:03:01.6]} 29. Bxe5
{[%clk 0:03:43.8]} 29... Be7 {[%clk 0:02:59.6]} 30. Nd7+ {[%clk 0:03:42.6]}
30... Kg6 {[%clk 0:02:57.1]} 31. Nxf8+ {[%clk 0:03:41.9]} 31... Rxf8 {[%clk
0:02:55.3]} 32. Rd7 {[%clk 0:03:41.5]} 1-0

[Event "Live Chess"]
[Site "Chess.com"]
[Date "2023.05.21"]
[Round "-"]
[White "ExIsambard"]
[Black "ElectricFalcon"]
[Result "1-0"]
[WhiteElo "1901"]
[BlackElo "1080"]
[TimeControl "300"]
[EndTime "4:26:30 PDT"]
[Termination "ExIsambard won by checkmate"]

1. d4 {[%clk 0:04:57.6]} 1... d5 {[%clk 0:04:59.1]} 2. Nf3 {[%clk 0:04:55.5]}
2... Nc6 {[%clk 0:04:58.6]} 3. Bg5 {[%clk 0:04:55.2]} 3... Nf6 {[%clk 0:04:58]}
4. e3 {[%clk 0:04:54.4]} 4... e6 {[%clk 0:04:55.8]} 5. Bd3 {[%clk 0:04:53.1]}
5... Be7 {[%clk 0:04:54.4]} 6. Nbd2 {[%clk 0:04:51.9]} 6... O-O {[%clk
0:04:53.6]} 7. h4 {[%clk 0:04:51.3]} 7... h6 {[%clk 0:04:52.4]} 8. Qe2 {[%clk
0:04:49.8]} 8... hxg5 {[%clk 0:04:50.5]} 9. hxg5 {[%clk 0:04:49]} 9... Nh7
{[%clk 0:04:41.4]} 10. Bxh7+ {[%clk 0:04:46.8]} 10... Kh8 {[%clk 0:04:40.5]} 11.
Bd3+ {[%clk 0:04:44.6]} 11... Kg8 {[%clk 0:04:39.5]} 12. Nh4 {[%clk 0:04:40.2]}
12... f6 {[%clk 0:04:37.1]} 13. g6 {[%clk 0:04:34.8]} 13... f5 {[%clk
0:04:29.1]} 14. Qh5 {[%clk 0:04:33.7]} 14... Rf6 {[%clk 0:04:19.8]} 15. Qh7+
{[%clk 0:04:31.8]} 15... Kf8 {[%clk 0:04:18.5]} 16. Qh8# {[%clk 0:04:31.2]} 1-0

[Event "Live Chess"]
[Site "Chess.com"]
[Date "2023.05.21"]
[Round "-"]
[White "NAZRIZ1977"]
[Black "Long1968"]
[Result "1-0"]
[WhiteElo "1956"]
[BlackElo "960"]
[TimeControl "300"]
[EndTime "4:26:37 PDT"]
[Termination "NAZRIZ1977 won by resignation"]

1. d4 {[%clk 0:04:54.3]} 1... Nf6 {[%clk 0:04:55.5]} 2. Nc3 {[%clk 0:04:53.5]}
2... e6 {[%clk 0:04:51.5]} 3. Bf4 {[%clk 0:04:52.8]} 3... c5 {[%clk 0:04:44.8]}
4. e3 {[%clk 0:04:52.1]} 4... a6 {[%clk 0:04:40]} 5. d5 {[%clk 0:04:50.2]} 5...
exd5 {[%clk 0:04:32.2]} 6. Nxd5 {[%clk 0:04:49.5]} 6... Nc6 {[%clk 0:04:15.7]}
7. Nf3 {[%clk 0:04:47.5]} 7... Nxd5 {[%clk 0:04:06.4]} 8. Qxd5 {[%clk
0:04:47.4]} 8... Be7 {[%clk 0:03:56.4]} 9. O-O-O {[%clk 0:04:42.5]} 9... O-O
{[%clk 0:03:51]} 10. a3 {[%clk 0:04:39.1]} 10... d6 {[%clk 0:03:27.8]} 11. Bd3
{[%clk 0:04:37.5]} 11... Be6 {[%clk 0:03:22.9]} 12. Qh5 {[%clk 0:04:35.8]} 12...
g6 {[%clk 0:03:18.1]} 13. Qh6 {[%clk 0:04:34.1]} 13... Bf6 {[%clk 0:03:04.8]}
14. Bg5 {[%clk 0:04:24.4]} 14... Bg7 {[%clk 0:02:51.4]} 15. Qh4 {[%clk
0:04:16.9]} 15... f6 {[%clk 0:02:45.8]} 16. Bh6 {[%clk 0:04:14.7]} 16... g5
{[%clk 0:02:35.7]} 17. Bxg5 {[%clk 0:03:59]} 17... h6 {[%clk 0:02:18.7]} 18.
Bxh6 {[%clk 0:03:57.2]} 18... Kf7 {[%clk 0:01:56.1]} 19. Bxg7 {[%clk 0:03:53.4]}
19... Rg8 {[%clk 0:01:43.5]} 20. Bh6 {[%clk 0:03:41.9]} 20... Rh8 {[%clk
0:01:09.1]} 21. Qh5+ {[%clk 0:03:34.7]} 21... Ke7 {[%clk 0:01:02.7]} 22. Qg6
{[%clk 0:03:29.8]} 22... Bf7 {[%clk 0:00:55.3]} 23. Qe4+ {[%clk 0:03:27.1]}
23... Ne5 {[%clk 0:00:28.6]} 24. Nxe5 {[%clk 0:03:22.6]} 24... Rxh6 {[%clk
0:00:17.2]} 25. Nc6+ {[%clk 0:03:19.1]} 1-0

[Event "Live Chess"]
[Site "Chess.com"]
[Date "2023.05.21"]
[Round "-"]
[White "peter-785"]
[Black "defenderalist"]
[Result "0-1"]
[WhiteElo "1186"]
[BlackElo "1652"]
[TimeControl "300"]
[EndTime "4:26:49 PDT"]
[Termination "defenderalist won by resignation"]

1. e4 {[%clk 0:04:58.1]} 1... e5 {[%clk 0:04:58.3]} 2. Nf3 {[%clk 0:04:57.7]}
2... Nc6 {[%clk 0:04:57.1]} 3. Bc4 {[%clk 0:04:56.9]} 3... Nf6 {[%clk
0:04:55.8]} 4. Nc3 {[%clk 0:04:54.8]} 4... Bc5 {[%clk 0:04:54.8]} 5. O-O {[%clk
0:04:49.2]} 5... d6 {[%clk 0:04:53.4]} 6. d3 {[%clk 0:04:47.2]} 6... a6 {[%clk
0:04:52.2]} 7. Ne2 {[%clk 0:04:30.3]} 7... Bg4 {[%clk 0:04:48.7]} 8. h3 {[%clk
0:04:28.7]} 8... Bxf3 {[%clk 0:04:47.1]} 9. gxf3 {[%clk 0:04:27]} 9... Nh5
{[%clk 0:04:43.1]} 10. f4 {[%clk 0:04:22.9]} 10... exf4 {[%clk 0:04:41.5]} 11.
Nxf4 {[%clk 0:04:08.8]} 11... Nxf4 {[%clk 0:04:33.3]} 12. Kh2 {[%clk 0:03:50.8]}
12... Qh4 {[%clk 0:04:11.6]} 13. Qg4 {[%clk 0:03:40.3]} 13... Qxg4 {[%clk
0:04:09.5]} 14. hxg4 {[%clk 0:03:39.4]} 14... Ng6 {[%clk 0:04:07.7]} 15. f3
{[%clk 0:03:33.6]} 15... O-O {[%clk 0:04:06.6]} 16. Kg2 {[%clk 0:03:25.2]} 16...
Nge5 {[%clk 0:04:05.5]} 17. Bb3 {[%clk 0:03:21.7]} 17... Nd4 {[%clk 0:04:03]}
18. c3 {[%clk 0:03:05]} 18... Nxb3 {[%clk 0:04:01.8]} 19. axb3 {[%clk
0:03:04.3]} 19... Nxd3 {[%clk 0:04:00.5]} 20. b4 {[%clk 0:02:58.9]} 20... Nxc1
{[%clk 0:03:58.9]} 21. Raxc1 {[%clk 0:02:56.8]} 21... Bb6 {[%clk 0:03:36.9]} 22.
Rcd1 {[%clk 0:02:39.2]} 22... g6 {[%clk 0:03:34.3]} 23. Rfe1 {[%clk 0:02:17.5]}
23... f5 {[%clk 0:03:31.9]} 24. exf5 {[%clk 0:02:12.8]} 24... gxf5 {[%clk
0:03:31]} 25. gxf5 {[%clk 0:02:11.8]} 25... Rxf5 {[%clk 0:03:29.9]} 26. Re7
{[%clk 0:02:06.3]} 26... Raf8 {[%clk 0:03:26.5]} 27. Rh1 {[%clk 0:01:49.3]}
27... R5f7 {[%clk 0:03:25]} 28. Rxf7 {[%clk 0:01:46.3]} 28... Rxf7 {[%clk
0:03:23.9]} 29. Rh3 {[%clk 0:01:38.8]} 29... Rg7+ {[%clk 0:03:22.2]} 30. Kf1
{[%clk 0:01:35.8]} 30... Kf7 {[%clk 0:03:20.7]} 31. Ke2 {[%clk 0:01:33.3]} 31...
Rg2+ {[%clk 0:03:17.7]} 32. Kd3 {[%clk 0:01:30.3]} 32... Kg6 {[%clk 0:03:14.3]}
33. Ke4 {[%clk 0:01:27.6]} 33... Rxb2 {[%clk 0:03:11.6]} 34. f4 {[%clk
0:01:22.6]} 34... Re2+ {[%clk 0:03:10.2]} 35. Kf3 {[%clk 0:01:16.8]} 35... Re3+
{[%clk 0:03:09.1]} 36. Kg4 {[%clk 0:01:12.7]} 36... Rxh3 {[%clk 0:03:09]} 37.
Kxh3 {[%clk 0:01:11.4]} 37... Kf5 {[%clk 0:03:08.5]} 38. Kg3 {[%clk 0:01:10.7]}
38... h5 {[%clk 0:03:06.8]} 0-1

[Event "Live Chess"]
[Site "Chess.com"]
[Date "2023.05.21"]
[Round "-"]
[White "Tiltador"]
[Black "JoeyCage"]
[Result "0-1"]
[WhiteElo "808"]
[BlackElo "2290"]
[TimeControl "300"]
[EndTime "4:26:49 PDT"]
[Termination "JoeyCage won by checkmate"]

1. f4 {[%clk 0:04:56.9]} 1... d5 {[%clk 0:04:58]} 2. Nf3 {[%clk 0:04:55]} 2...
a6 {[%clk 0:04:56.1]} 3. g3 {[%clk 0:04:54.3]} 3... c5 {[%clk 0:04:54.7]} 4. Bg2
{[%clk 0:04:53.3]} 4... Nc6 {[%clk 0:04:54.3]} 5. O-O {[%clk 0:04:52.2]} 5...
Nf6 {[%clk 0:04:53.5]} 6. e3 {[%clk 0:04:51.2]} 6... h5 {[%clk 0:04:51]} 7. Qe1
{[%clk 0:04:46.3]} 7... Bf5 {[%clk 0:04:49.2]} 8. d3 {[%clk 0:04:44.2]} 8... Nb4
{[%clk 0:04:42.6]} 9. Qf2 {[%clk 0:04:37.6]} 9... Qb6 {[%clk 0:04:36.6]} 10. a3
{[%clk 0:04:36.4]} 10... Nc6 {[%clk 0:04:35]} 11. Nc3 {[%clk 0:04:32.3]} 11...
e6 {[%clk 0:04:33.2]} 12. Ne5 {[%clk 0:04:28.6]} 12... Bd6 {[%clk 0:04:27.2]}
13. Nxc6 {[%clk 0:04:17.3]} 13... Qxc6 {[%clk 0:04:25.1]} 14. e4 {[%clk
0:04:14]} 14... dxe4 {[%clk 0:04:22.1]} 15. Bxe4 {[%clk 0:04:10.4]} 15... Nxe4
{[%clk 0:04:19.7]} 16. Nxe4 {[%clk 0:04:04.9]} 16... Bxe4 {[%clk 0:04:18.5]} 17.
dxe4 {[%clk 0:04:02.7]} 17... Qxe4 {[%clk 0:04:17.2]} 18. Qe3 {[%clk 0:03:54.2]}
18... Qxe3+ {[%clk 0:04:15.8]} 19. Bxe3 {[%clk 0:03:51.7]} 19... O-O-O {[%clk
0:04:15.4]} 20. c3 {[%clk 0:03:49.2]} 20... Be7 {[%clk 0:04:13.6]} 21. b4 {[%clk
0:03:47.8]} 21... Rd3 {[%clk 0:04:11.1]} 22. Rfe1 {[%clk 0:03:38.1]} 22... Rxc3
{[%clk 0:04:08.7]} 23. Bxc5 {[%clk 0:03:34.7]} 23... Bxc5+ {[%clk 0:04:06.9]}
24. bxc5 {[%clk 0:03:32.8]} 24... Rxc5 {[%clk 0:04:05.9]} 25. Rac1 {[%clk
0:03:30.9]} 25... Rxc1 {[%clk 0:04:04.6]} 26. Rxc1+ {[%clk 0:03:29.7]} 26... Kb8
{[%clk 0:04:04.1]} 27. Kg2 {[%clk 0:03:24.5]} 27... Rc8 {[%clk 0:04:02]} 28. Rd1
{[%clk 0:03:16]} 28... Kc7 {[%clk 0:04:01]} 29. h4 {[%clk 0:03:13.6]} 29... b5
{[%clk 0:03:59.1]} 30. Kh3 {[%clk 0:03:09.7]} 30... a5 {[%clk 0:03:55.1]} 31.
Rd3 {[%clk 0:03:01.6]} 31... Rb8 {[%clk 0:03:53.7]} 32. g4 {[%clk 0:03:00]}
32... hxg4+ {[%clk 0:03:51.9]} 33. Kxg4 {[%clk 0:02:58.9]} 33... b4 {[%clk
0:03:51.8]} 34. axb4 {[%clk 0:02:55.5]} 34... axb4 {[%clk 0:03:50.7]} 35. Rb3
{[%clk 0:02:53.8]} 35... Rb5 {[%clk 0:03:48.6]} 36. h5 {[%clk 0:02:52.3]} 36...
Kd7 {[%clk 0:03:47.4]} 37. Rd3+ {[%clk 0:02:44.8]} 37... Ke7 {[%clk 0:03:46.3]}
38. Kh4 {[%clk 0:02:42]} 38... b3 {[%clk 0:03:45]} 39. Rd1 {[%clk 0:02:36.1]}
39... b2 {[%clk 0:03:44]} 40. Rb1 {[%clk 0:02:35.1]} 40... Kf6 {[%clk
0:03:43.5]} 41. Kg3 {[%clk 0:02:32.9]} 41... Kf5 {[%clk 0:03:42.4]} 42. Kf3
{[%clk 0:02:24.9]} 42... Rb3+ {[%clk 0:03:41]} 43. Ke2 {[%clk 0:02:20.5]} 43...
Kxf4 {[%clk 0:03:40]} 44. Kd2 {[%clk 0:02:18.9]} 44... Kg5 {[%clk 0:03:35.3]}
45. Kc2 {[%clk 0:02:17.3]} 45... Rb7 {[%clk 0:03:34.1]} 46. Rxb2 {[%clk
0:02:15.8]} 46... Rxb2+ {[%clk 0:03:32]} 47. Kxb2 {[%clk 0:02:14.9]} 47... Kxh5
{[%clk 0:03:31.9]} 48. Kc2 {[%clk 0:02:14.2]} 48... Kg4 {[%clk 0:03:30.6]} 49.
Kd2 {[%clk 0:02:13.4]} 49... Kf3 {[%clk 0:03:29.5]} 50. Ke1 {[%clk 0:02:11.8]}
50... Kg2 {[%clk 0:03:28.7]} 51. Ke2 {[%clk 0:02:08.2]} 51... g5 {[%clk
0:03:28.6]} 52. Ke3 {[%clk 0:02:06.1]} 52... g4 {[%clk 0:03:28.5]} 53. Kf4
{[%clk 0:02:04.5]} 53... g3 {[%clk 0:03:28.4]} 54. Kg4 {[%clk 0:02:03.1]} 54...
Kf2 {[%clk 0:03:27.2]} 55. Kh3 {[%clk 0:02:01.3]} 55... g2 {[%clk 0:03:27.1]}
56. Kh2 {[%clk 0:02:00.2]} 56... g1=Q+ {[%clk 0:03:25.3]} 57. Kh3 {[%clk
0:01:59.2]} 57... Qg3# {[%clk 0:03:25.2]} 0-1